Workbook

Sheet тест
B1: Факт
A2: Всего | B2: Сейчас | C2: Процент
A3: 9700 | B3: 9100 | C3: =B3/A3 -> 0.9381443299 | D3: =C3 -> 0.9381443299
A4: 9600 | B4: 2509.391 | C4: =B4/A4 -> 0.2613948958 | D4: =C4 -> 0.2613948958
A5: 18000 | B5: 16000 | C5: =B5/A5 -> 0.8888888889 | D5: 0.8888888889
A6: 5100 | B6: 2378.04 | C6: =B6/A6 -> 0.4662823529 | D6: 0.4662823529
A7: 5800 | B7: 10000 | C7: =(B7/A9) -> 0.8130081301 | D7: 0.8130081301
A8: 6500
A9: =SUM(A7:A8) -> 12300
A10: 19000 | B10: 11653.739 | C10: =(B10/A12) -> 0.4482207308 | D10: 0.4482207308
A11: 7000
A12: =SUM(A10:A11) -> 26000
A13: 5000 | B13: 15000 | C13: =(B13/A15) -> 0.9375 | D13: 0.9375
A14: 11000
A15: =SUM(A13:A14) -> 16000
A16: 1200 | B16: 17656.547 | C16: =(B16/A18) -> 0.2885056699 | D16: 0.2885056699
A17: 60000
A18: =SUM(A16:A17) -> 61200
A19: 5900 | B19: 495.333 | C19: =B19/A19 -> 0.08395474576 | D19: 0.08395474576
A20: 4800 | B20: 22000 | C20: =(B20/A22) -> 0.7913669065 | D20: 0.7913669065
A21: 23000
A22: =SUM(A20:A21) -> 27800
